Cogmind - Beta 15 @@@ ROGUE MODE // 2025.05.23 @ 10:56:38 Player: PieTheDye Result: Destroyed by H-61 Shepherd with Heavy Assault Cannon Performance ------------- Evolutions (2) 1000 Regions Visited (5) 1000 Robots Destroyed (27) 135 Value Destroyed (839) 839 Prototype IDs (31) 620 Alien Tech Used (0) 0 Bonus (300) 300 TOTAL SCORE: 3894 Bonus ------- Aligned with FarCom 300 Cogmind --------- Core Integrity 0/550 Matter 111/300 Energy 41/100 System Corruption 0% Temperature Cool (12) Movement Core (100) Ox1 Location -8/Materials Parts ------- > --- POWER (1) -------- (None) > --- PROPULSION (4) --- (None) > --- UTILITY (4) ------ (None) > --- WEAPON (2) ------- Heavy Laser > --- INVENTORY (5) ---- Kinecellerator Utility Shielding Trap Reconfigurator Peak State ------------ > --- POWER ------------ Ion Engine > --- PROPULSION ------- Improved Titanium Leg Improved Titanium Leg Improved Titanium Leg Improved Titanium Leg > --- UTILITY ---------- Large Storage Unit Advanced Targeting Computer Propulsion Shielding Hacking Suite > --- WEAPON ----------- Heavy Particle Cannon Heavy Particle Cannon > --- INVENTORY -------- Light Ion Engine Heat Sink Structural Scanner ECM Suite Utility Shielding Trap Reconfigurator Pulse Rifle Beam Cannon Beam Cannon Grenade Launcher Rocket Launcher [Rating: 33] Favorites ----------- Power Ion Engine Engine Ion Engine Propulsion Light Treads Treads Light Treads Leg Improved Titanium Leg Hover Unit Aerolev Unit Utility Large Storage Unit Device Structural Scanner Storage Large Storage Unit Processor Advanced Visual Processing Unit Hackware Hacking Suite Protection Propulsion Shielding Weapon Light Assault Rifle Energy Gun Pulse Rifle Energy Cannon Heavy Particle Cannon Ballistic Gun Light Assault Rifle Launcher Grenade Launcher Build | -11 -10 -10 -10 -9 -8 ------- Run | Yrd Mat Min Exi Min Mat Slots Evolved 4 | . . . . . 4 Power . | . . . . . . Propulsion 2 | . . . . . 2 Utility 2 | . . . . . 2 Weapon . | . . . . . . Parts Attached 36 | 7 2 . . 2 25 Power 3 | 1 . . . . 2 Engine 3 | 1 . . . . 2 Core . | . . . . . . Reactor . | . . . . . . Propulsion 9 | 2 . . . 1 6 Treads 3 | 2 . . . 1 . Leg 5 | . . . . . 5 Wheel . | . . . . . . Hover 1 | . . . . . 1 Flight . | . . . . . . Utility 11 | 1 2 . . . 8 Device 3 | . 1 . . . 2 Storage 2 | 1 1 . . . . Processor 3 | . . . . . 3 Hackware 2 | . . . . . 2 Protection 1 | . . . . . 1 Artifact . | . . . . . . Weapon 13 | 3 . . . 1 9 Energy Gun 3 | 1 . . . . 2 Energy Cannon 4 | . . . . . 4 Ballistic Gun 4 | 2 . . . . 2 Ballistic Cannon . | . . . . . . Launcher 2 | . . . . 1 1 Special Weapon . | . . . . . . Impact Weapon . | . . . . . . Slashing Weapon . | . . . . . . Piercing Weapon . | . . . . . . Special Melee Weapon . | . . . . . . Unidentified Prototypes 1 | . . . . . 1 Parts Lost 14 | . . . . . 14 Power 2 | . . . . . 2 Propulsion 2 | . . . . . 2 Utility 5 | . . . . . 5 Weapon 5 | . . . . . 5 Highest Loss Streak 8 | . . . . . 8 To Critical Strikes . | . . . . . . Average Backups 11 | 1 8 12 13 14 11 Power 1 | . 1 2 2 2 1 Propulsion 1 | . 2 2 2 2 . Utility 3 | . 1 3 3 4 4 Weapon 4 | . 2 5 6 6 4 Tool/Special . | . . . . . . Unused Backups 10 | . . . . . 10 Power 1 | . . . . . 1 Propulsion 2 | . . . . . 2 Utility 5 | . . . . . 5 Weapon 2 | . . . . . 2 Tool/Special . | . . . . . . Average Slot Usage (%) 86 | . 85 100 100 100 75 Engine 11 | . 14 14 14 14 8 Treads 17 | . 28 28 28 28 4 Leg 5 | . . . . . 13 Device 6 | . . 14 14 14 1 Storage 11 | . 14 14 14 14 8 Processor 5 | . . . . . 12 Hackware 3 | . . . . . 7 Energy Cannon 4 | . . . . . 9 Ballistic Gun 18 | . 28 28 28 27 7 Peak Build Rating 33 | 6 8 8 9 9 33 Average Rating 13 | 4 6 8 8 9 20 On Entrance 6 | . 6 8 8 9 9 Naked Turns 4 | . . . . . 4 Heaviest Build 39 | 13 28 28 28 28 39 Greatest Support 80 | 40 40 40 40 40 80 Greatest Overweight (x) 12 | . . . . . 12 Average Overweight (x) . | . . . . . 1 Largest Inventory Capacity 15 | 8 15 15 15 15 15 Average Capacity 14 | 7 13 15 15 15 14 Most Carried 15 | 4 12 13 14 15 15 Average Carried 11 | 1 8 12 13 14 11 Final Capacity 15 | 8 15 15 15 15 5 Final Carried 15 | 4 12 13 14 15 3 Class Distribution -------------------- 100% | Mutant Dominant Class ---------------- Mutant | -10/Materials Mutant | -10/Mines Mutant | -10/Exiles Mutant | -9/Mines Mutant | -8/Materials Resources | -11 -10 -10 -10 -9 -8 ----------- Run | Yrd Mat Min Exi Min Mat Matter Collected 721 | 153 195 14 . 96 263 Remotely . | . . . . . . Salvage Created 890 | . 269 . . 64 557 Parts 59 | . 18 . . 3 38 Haulers Intercepted 3 | . 1 . . . 2 Recyclers Shooed 1 | . . . . . 1 Parts Field Recycled . | . . . . . . Retrieved Matter . | . . . . . . Parts Self-Destructed . | . . . . . . Prevented . | . . . . . . Kills | -11 -10 -10 -10 -9 -8 ------- Run | Yrd Mat Min Exi Min Mat Combat Hostiles Destroyed 24 | . 7 . . 3 14 Guns 10 | . 7 . . . 3 Cannons 6 | . . . . . 6 AOE 8 | . . . . 3 5 Classes Destroyed 6 | . 3 . . . 3 Hauler 3 | . 1 . . . 2 Swarmer 6 | . 3 . . . 3 Grunt 13 | . 4 . . 3 6 Duelist 1 | . . . . . 1 Protector 1 | . . . . . 1 Sentry 3 | . . . . . 3 Best Kill Streak 5 | . 5 . . 3 4 Combat Bots Only 5 | . 5 . . 3 4 Max Kills in Single Turn 2 | . 1 . . 2 1 Gunslinging . | . . . . . . Exploded 2 | . . . . 2 1 Melee . | . . . . . . Uniques/NPCs Destroyed . | . . . . . . Combat | -11 -10 -10 -10 -9 -8 -------- Run | Yrd Mat Min Exi Min Mat Hostile Shots Fired 182 | . 39 . . 11 132 Missed 46 | . 8 . . 5 33 Hits 136 | . 31 . . 6 99 Projectile 136 | . 31 . . 6 99 Critical Strikes 4 | . . . . 1 3 Damage Taken 2187 | . 299 . . 66 1822 Core 624 | . 54 . . . 570 Absorbed by Shields . | . . . . . . Redirected to Shielding 53 | . . . . . 53 Core Remaining (%) 89 | 100 . . . 78 . Volleys Fired 91 | . 36 . . 6 49 Largest 2 | . 2 . . 2 2 Hottest 150 | . 40 . . 50 150 Shots Fired 176 | . 72 . . 12 92 Gun 119 | . 72 . . 6 41 Cannon 44 | . . . . . 44 Launcher 13 | . . . . 6 7 Special . | . . . . . . Kinetic 113 | . 72 . . 6 35 Thermal 50 | . . . . . 50 Explosive 13 | . . . . 6 7 Electromagnetic . | . . . . . . Robot Hit Streak 16 | . 7 . . 7 16 Robot Miss Streak 5 | . 5 . . 1 2 Penetration Max . | . . . . . . Secondary Targets 1 | . . . . . 1 Max Gunslinging Chain 1 | . . . . . 1 Shots Hit Robots 118 | . 44 . . 8 66 Core Hits 51 | . 16 . . 4 31 Critical Kills . | . . . . . . Critical Parts Destroyed . | . . . . . . Critical Strikes . | . . . . . . Melee Attacks . | . . . . . . Impact . | . . . . . . Slashing . | . . . . . . Piercing . | . . . . . . Sneak Attacks . | . . . . . . Combat Hostiles . | . . . . . . Follow-up Attacks . | . . . . . . Damage Inflicted 2531 | . 359 . . 370 1802 Guns 904 | . 359 . . 25 520 Cannons 686 | . . . . . 686 Explosions 941 | . . . . 345 596 Melee . | . . . . . . Ramming . | . . . . . . Kinetic 799 | . 359 . . 25 415 Thermal 791 | . . . . . 791 Explosive 941 | . . . . 345 596 Electromagnetic . | . . . . . . Impact . | . . . . . . Slashing . | . . . . . . Piercing . | . . . . . . Highest Corruption . | . . . . . . Average Corruption . | . . . . . . Corruption Purged . | . . . . . . Corruption Blocked . | . . . . . . Overload Shots . | . . . . . . Overflow Damage 32 | . . . . . 32 Projectiles . | . . . . . . Explosions 32 | . . . . . 32 Melee . | . . . . . . Knockbacks . | . . . . . . Impact . | . . . . . . Kinetic . | . . . . . . Secondary . | . . . . . . Self-Inflicted Damage 125 | . . . . . 125 Shots 5 | . . . . . 5 Rammed . | . . . . . . Targets Rammed . | . . . . . . Kicked . | . . . . . . Crushed . | . . . . . . Highest Temperature 615 | . 12 . . 51 615 Average Temperature 127 | . 8 . . 31 156 Received Heat Transfer 762 | . 102 . . 57 603 Effects 23 | . . . . . 23 Shutdowns 2 | . . . . . 2 Interference 3 | . . . . . 3 Matter Decay 2 | . . . . . 2 Short Circuit 4 | . . . . . 4 Damage (minor) 1 | . . . . . 1 Damage (major) 11 | . . . . . 11 Siege Activations . | . . . . . . Martial Activations . | . . . . . . Shielding Activations . | . . . . . . Robots Disrupted . | . . . . . . Combat Hostiles . | . . . . . . Robots Corrupted . | . . . . . . Combat Hostiles . | . . . . . . Parts Fried . | . . . . . . Impact Corruptions . | . . . . . . Robots Melted . | . . . . . . Combat Hostiles . | . . . . . . Parts Melted 1 | . . . . . 1 Heat Transferred 1240 | . . . . . 1240 Parts Sabotaged . | . . . . . . Parts Stolen . | . . . . . . Parts Stripped . | . . . . . . Power Chain Reactions . | . . . . . . Alert | -11 -10 -10 -10 -9 -8 ------- Run | Yrd Mat Min Exi Min Mat Maximum Alert Level . | . . . . . . Low Security (%) 100 | 100 100 100 . 100 100 Level 1 . | . . . . . . Level 2 . | . . . . . . Level 3 . | . . . . . . Level 4 . | . . . . . . Level 5 . | . . . . . . High Security . | . . . . . . Max Security . | . . . . . . Peak Influence 115 | . 115 8 . 79 100 Initial 8 | . . 8 . . . Average 18 | . 45 5 . 12 11 Influence Increases 758 | . 197 . . 79 482 Destroy 0b10 Robot/C 460 | . 140 . . 60 260 Destroy 0b10 Robot/NC 20 | . 5 . . . 15 Destroy Leader 116 | . 32 . . 10 74 Successful Hack 48 | . 20 . . . 28 Disable Machine 45 | . . . . . 45 Destroy Structure 39 | . . . . 9 30 Lose Combat Pursuer 30 | . . . . . 30 Influence Decreases 658 | . 175 22 . 79 382 Entered New Map 14 | . . 14 . . . Time Decay 535 | . 175 8 . 79 273 Lost Part 109 | . . . . . 109 Squads Dispatched 8 | . 2 . . . 6 Investigation 1 | . 1 . . . . Extermination . | . . . . . . Reinforcement 4 | . 1 . . . 3 Assault 2 | . . . . . 2 Garrison 1 | . . . . . 1 Intercept . | . . . . . . Searches Triggered . | . . . . . . Construction Impeded . | . . . . . . Haulers Reinforced . | . . . . . . Active Scanning Responses . | . . . . . . Cargo Convoy Interrupts . | . . . . . . Stealth | -11 -10 -10 -10 -9 -8 --------- Run | Yrd Mat Min Exi Min Mat Distress Signals 2 | . . . . . 2 Communications Jammed . | . . . . . . Distress Signals . | . . . . . . Times Spotted 37 | . 8 . . 3 26 Peak Tracking Total 9 | . 4 . . 3 9 Tactical Retreats 1 | . . . . . 1 Traps | -11 -10 -10 -10 -9 -8 ------- Run | Yrd Mat Min Exi Min Mat Traps Triggered 1 | . 1 . . . . Indirectly . | . . . . . . Trap Hack Attempts . | . . . . . . Triggered . | . . . . . . Disarmed . | . . . . . . Reprogrammed . | . . . . . . Reused . | . . . . . . Traps Extracted . | . . . . . . Installed . | . . . . . . Triggered . | . . . . . . Machines | -11 -10 -10 -10 -9 -8 ---------- Run | Yrd Mat Min Exi Min Mat Machines Disabled 3 | . . . . . 3 Max in Single Turn 1 | . . . . . 1 Garrison Access 1 | . . . . . 1 Machines Repaired . | . . . . . . Machines Dismantled . | . . . . . . Machines Sabotaged . | . . . . . . Overloaded Fab Kills . | . . . . . . Hacking | -11 -10 -10 -10 -9 -8 --------- Run | Yrd Mat Min Exi Min Mat Machines Accessed 10 | . 3 . 2 . 5 Terminals 7 | . 3 . . . 4 Fabricators . | . . . . . . Repair Stations . | . . . . . . Recycling Units 1 | . . . . . 1 Scanalyzers . | . . . . . . Garrison Access . | . . . . . . Total Hacks 27 | . 11 . 2 . 14 Successful 14 | . 7 . 2 . 5 Failed 13 | . 4 . . . 9 Catastrophic 2 | . . . . . 2 Database Lockouts . | . . . . . . Manual 22 | . 10 . 1 . 11 Terminals 23 | . 11 . . . 12 Fabricators . | . . . . . . Repair Stations . | . . . . . . Recycling Units 2 | . . . . . 2 Scanalyzers . | . . . . . . Garrison Access . | . . . . . . Terminal Hacks 8 | . 4 . 2 . 2 Record 1 | . . . 1 . . Robot Analysis 2 | . 1 . . . 1 Prototype ID Bank 4 | . 3 . . . 1 Proto ID Catalog 1 | . . . 1 . . Fabricator Hacks . | . . . . . . Repair Station Hacks . | . . . . . . Recycling Unit Hacks . | . . . . . . Scanalyzer . | . . . . . . Garrison Access Hacks . | . . . . . . Unauthorized Hacks 6 | . 3 . . . 3 Terminals 6 | . 3 . . . 3 Botnet 6 | . 3 . . . 3 Fabricators . | . . . . . . Repair Stations . | . . . . . . Recycling Units . | . . . . . . Scanalyzers . | . . . . . . Garrison Access . | . . . . . . Data Cores Recovered . | . . . . . . Used . | . . . . . . Hacking Detections 8 | . 3 . . . 5 Full Trace Events . | . . . . . . Feedback Events . | . . . . . . Feedback Blocked . | . . . . . . Robot Schematics Acquired . | . . . . . . Robots Built . | . . . . . . Authchips . | . . . . . . Time . | . . . . . . Total Robot Build Rating . | . . . . . . Part Schematics Acquired . | . . . . . . Parts Built . | . . . . . . Authchips . | . . . . . . Time . | . . . . . . Total Part Build Rating . | . . . . . . Parts Repaired . | . . . . . . Time . | . . . . . . Parts Recycled . | . . . . . . Recycled Matter . | . . . . . . Retrieved Matter . | . . . . . . Retrieved Components . | . . . . . . Parts Scanalyzed . | . . . . . . Part Schematics Acquired . | . . . . . . Parts Damaged . | . . . . . . Bothacking | -11 -10 -10 -10 -9 -8 ------------ Run | Yrd Mat Min Exi Min Mat Used RIF Installer . | . . . . . . Robots Hacked . | . . . . . . Non-combat . | . . . . . . Combat . | . . . . . . Robot Hacks Applied . | . . . . . . Relay Couplers Released 1 | . . . . . 1 Machine Destruction 1 | . . . . . 1 Fabnet Peak Effective % . | . . . . . . Robots Rewired . | . . . . . . Allies Hacked . | . . . . . . Hacks Repelled . | . . . . . . Allies | -11 -10 -10 -10 -9 -8 -------- Run | Yrd Mat Min Exi Min Mat Total Allies . | . . . . . . Largest Group . | . . . . . . Highest-Rated Group . | . . . . . . Highest-Rated Ally . | . . . . . . Total Orders . | . . . . . . Ally Attacks . | . . . . . . Total Damage . | . . . . . . Kills . | . . . . . . Allies Corrupted . | . . . . . . Allies Melted . | . . . . . . Intel | -11 -10 -10 -10 -9 -8 ------- Run | Yrd Mat Min Exi Min Mat Active Infowar (turns) 1832 | . 34 29 371 528 870 Optics 646 | . . . . . 646 Structural 1165 | . 34 29 371 528 203 Jamming 21 | . . . . . 21 Robot Analysis Total 2 | . 1 . . . 1 Derelict Logs Recovered 1 | . . . . 1 . Drone Launches . | . . . . . . Drone Recoveries . | . . . . . . Exploration | -11 -10 -10 -10 -9 -8 ------------- Run | Yrd Mat Min Exi Min Mat Turns Passed 2635 | 64 493 29 371 528 1150 Spaces Moved 1274 | 32 238 18 232 311 443 Core 13 | 1 . . . . 12 Treads 946 | 31 238 18 232 311 116 Legs 315 | . . . . . 315 Wheels . | . . . . . . Hover . | . . . . . . Flight . | . . . . . . Fastest Speed 50 | 50 160 160 160 160 50 Average Speed 174 | 156 160 160 160 160 201 Slowest Speed 650 | 160 160 160 160 160 650 Overloaded Moves . | . . . . . . Propulsion Burnouts . | . . . . . . Robots Hopped . | . . . . . . Potential Cave-ins . | . . . . . . Cave-ins Triggered . | . . . . . . Exploration Rate (%) 38 | 5 46 10 62 70 40 Regions Visited 5 Branch Regions 3 Pre-discovered Areas 1 | . . . . 1 . Known Exits Taken . | . . . . . . Unknown Exits Taken 5 | 1 1 1 1 1 . Scrap Searched 3 | . . 1 . 2 . Spaces Dug 4 | . . . . . 4 Terrain Destroyed 40 | . . . . 11 29 Melee . | . . . . . . Projectile 12 | . . . . . 12 AOE 28 | . . . . 11 17 Terrain Rammed . | . . . . . . Walls Destroyed . | . . . . . . Machines Disabled . | . . . . . . Actions | -11 -10 -10 -10 -9 -8 --------- Run | Yrd Mat Min Exi Min Mat Total 1526 | 43 292 18 232 329 612 Wait 81 | . 8 . . 10 63 Move 1269 | 31 237 17 231 310 443 Hop . | . . . . . . Pick Up 22 | 5 8 1 1 . 7 Fast Attach 22 | 5 2 . . . 15 Attach 9 | 1 . . . . 8 Detach 2 | . . . . . 2 Swap 12 | 1 . . . 3 8 Drop 18 | . 1 . . . 17 Fire 91 | . 36 . . 6 49 Melee . | . . . . . . Ram . | . . . . . . Kick . | . . . . . . Crush . | . . . . . . Escape Stasis . | . . . . . . Rewire . | . . . . . . Trap . | . . . . . . Miscellaneous . | . . . . . . Route ------- -11/Scrapyard -10/Materials (discovered 2 exits: [*Mat] / [*Min]) -10/Mines -10/Exiles -9/Mines -8/Materials (discovered 1 exit: [*Sto]) History --------- Turn | Location | Event 29 | -11/Scrapyard | Discovered new exit (range 15) 65 | -11/Scrapyard | Entered Materials 307 | -10/Materials | Build established: Mutant 401 | -10/Materials | Discovered new exit (range 10) 470 | -10/Materials | Discovered new exit (range 15) 558 | -10/Materials | Entered Mines 565 | -10/Mines | Received a Rocket Launcher from a helpful Derelict 579 | -10/Mines | Deemed a non-threat by the Exiles lab entrance 579 | -10/Mines | Discovered new exit (range 6) 587 | -10/Mines | Entered Exiles 626 | -10/Exiles | Met 8R-AWN 651 | -10/Exiles | Met EX-HEX 696 | -10/Exiles | Met EX-BIN 717 | -10/Exiles | Aligned with FarCom system 719 | -10/Exiles | Given EX-Vault access code 762 | -10/Exiles | Opened EX-Vault 775 | -10/Exiles | Found Trap Reconfigurator 822 | -10/Exiles | Warned to stay clear of 0b10 Research branches 876 | -10/Exiles | Met EX-DEC 945 | -10/Exiles | Discovered new exit (range 10) 958 | -10/Exiles | Left Exiles lab with Trap Reconfigurator 958 | -10/Exiles | Entered Mines 996 | -9/Mines | Learned Materials terminal intel 1091 | -9/Mines | Met a Derelict bent on vengeance 1101 | -9/Mines | Found a Scrap Suit stashed away for nefarious purposes 1423 | -9/Mines | Discovered new exit (range 11) 1424 | -9/Mines | Learned location of Storage (-8) 1486 | -9/Mines | Entered Materials 1486 | -8/Materials | Evolved 4 slots: Propulsion x2, Utility x2 1487 | -8/Materials | Loaded intel: 12 terminal locations 1867 | -8/Materials | Garrison activated, responded to threat 1907 | -8/Materials | Lost 3 parts (3u) 2513 | -8/Materials | Discovered new exit (range 12) 2622 | -8/Materials | Core integrity fell below 50% 2630 | -8/Materials | Core integrity fell below 20% 2630 | -8/Materials | Released all parts (3) 2636 | -8/Materials | Destroyed by H-61 Shepherd with Heavy Assault Cannon Last Messages --------------- 02624_ Knocked back. 02624_ U-05 Engineer lays Concrete. 02625_ Acquired 9 matter. 02626_ U-05 Engineer lays Concrete. 02627_ Rocket Launcher destroyed. 02627_ U-05 Engineer lays Concrete. 02628_ Pulse Rifle destroyed. 02628_ U-05 Engineer lays Concrete. 02630_ The unstable cave ceiling collapses. 02630_ Beam Cannon crushed. 02630_ Released Imp. Targeting Computer. 02630_ Released Adv. Visual Processing Unit. 02630_ Released Hacking Suite. 02630_ U-05 Engineer lays Concrete. 02632_ Penetrated by Slug. 02632_ Knocked back. 02633_ U-05 Engineer lays Concrete. 02634_ K-01 Serf collects debris. 02634_ Acquired Hvy. Laser. 02634_ U-05 Engineer lays Concrete. Map ----- +----------------------------------------------------+ | # #???????????????????????????? | | # #"Y"#####+### ###???????????????????????????? | | # #"""## #?# #???????????????????????????T?? | | ## ###### "#?# #?????????????????????????????? | | ## !!## "#?# #?????????????????????????????? | | # !!## "#?# #?????????????????????????????? | | # !!## T#?# #?????????????????????????????? | | # !!## "#?# #???????????########??????????? | | / !## "#?# #???????????# """ #??????????? | | # !!## "### ##????###???# """ #??????????? | | # ###### ## ############! """ #??????????? | | ## #????####### g== + #??????????? | | ?# #??????????# ############ ! #??????????? | | ?# #??????????#####????###???# g! #??????????? | | ?# #?????????????????????????####+########?????? | | ## ##???????????????????????????# # ]""" #?????? | | # #???????#####???????????????#]# """ #?????? | | ######### #???????????????# + """ #?????? | | T < #???????????????# # #?????? | | ######### #???###?????????# # #?????? | | # #???????## ###### ####??????# # ! #?????? | | ###+######?????# ### # ; ###????# ########?????? | | # #?????# r g g ] #????# #????????????? | | # """ ##????##### " * =#????# #????????????? | | # """ #???????## " H! #????# #????????????? | | # """ #???????# " [g@ #????# #????????????? | | # / ##???????# " %= " #????# #????????????? | | # ! % #???????## "" !u #????? ?????????????? | | # #????????# % #????? ?????????????? | | # #????????# ! ! #????? ?????????????? | | # "T" #????????## ##;##k##????? ?????????????? | | ###########???????? ? ?????? ?????????????? | | #??????????????== ? ????? ?????????????? | | T #########????# == # ???? ?????????????? | | #########????# + ######??? ?????????????? | | #!! **##????# # #????????+?????????????? | | #=! **##????# # #??????????????????????? | | #== ##?#####?###?# #??????????????????????? | | ### # ###???? ??????????????????????? | | %! ??? ??????????????????????? | | ? ??????????????????????? | | %= ?? ???????????????????????? | | ####/### %= #######???????????????????????????? | | ### ###+###?????????????????????????????????? | | ### # ? ?????????????????????????????????? | | /### # ?? [????????????????????????????????? | | ## # ???! ???????????????????????????????? | | + # ??? ??????????????????????????????? | | ## # ""?? #?????????????????????????????? | | ## # "T???"" #?????????????????????????????? | +----------------------------------------------------+ Best States ------------- Heat Dissipation 41 Energy Generation 12 Energy Capacity 265 Matter Stores 300 Matter Capacity 300 Sight Range 20 Terrain Scan Density 10 Jamming Range 12 Propulsion Shielding 33 Evasion (%) 55 Targeting Accuracy 8 Recoil Reduction 3 Offensive Hacking 10 Item Schematics ----------------- None Robot Schematics ------------------ None Fabricated ------------ Nothing Repaired ---------- Nothing Alien Tech Used ----------------- None Achievements -------------- None Challenges ------------ None Game ------ Seed InterceptAluminumPerforator Manual? 0 Play Time 00:22:01 Cumulative 40.4 hours Start 2025.05.23 @ 10:20:27 End 2025.05.23 @ 10:56:38 Sessions 1 Manual Loads 0 Difficulty Rogue Special Mode None Game No. 48 Rogue 48 Adventurer 0 Explorer 0 Win Type - Total 0 Types 0/0/0/0/0/0/0/0/0/0 Lore% 19 Gallery% 30 Achievement% 33 Wizard Run 0 Options --------- Layout 0 ASCII 0 Keyboard 0 Movement Numpad Keybinds 0 Fullscreen 1 Font 18/SmallcapsGlow Map View 76x50 Zoom Use 0% Tactical HUD 1 Map Filters NONE Filters NONE Steam 1 RUN: bf89fabd-d6f2-4205-b1c3-fa4854fba197